bitfinex/quotes_BTCUSD_20241110
["timestamp","ask_amount","ask_price","bid_price","bid_amount"]
[1731275921612,0.000709,79935.0,79932.0,0.128811]
[1731275922213,0.000709,79935.0,79932.0,0.003705]
[1731275922371,0.000709,79935.0,79932.0,0.128811]
[1731275922806,0.000709,79935.0,79932.0,0.003705]
[1731275923650,0.000749,79933.0,79932.0,0.128811]
[1731275925646,0.000749,79933.0,79932.0,0.25725519]
[1731275925847,0.000749,79933.0,79932.0,0.28525519]
[1731275926219,0.000749,79933.0,79932.0,0.29525519]
[1731275926419,0.000749,79933.0,79932.0,0.37235321]
[1731275926679,0.000749,79933.0,79932.0,0.38016796]
[1731275926852,0.000749,79933.0,79932.0,0.37516796]
[1731275927080,0.000749,79933.0,79932.0,0.38016796]
[1731275928800,0.000749,79933.0,79932.0,0.39267192]
[1731275928972,0.000749,79933.0,79932.0,0.38016796]
[1731275929380,0.000749,79933.0,79932.0,0.39267193]
[1731275930135,0.000749,79933.0,79932.0,0.37235321]
[1731275930364,0.000749,79933.0,79932.0,0.39267177]
[1731275930566,0.000749,79933.0,79932.0,0.38267177]
[1731275930776,0.000749,79933.0,79932.0,0.30307177]
[1731275930889,0.000749,79933.0,79932.0,0.29056804]
[1731275931085,0.000749,79933.0,79932.0,0.26756804]
[1731275931771,0.000749,79933.0,79932.0,0.13662583]
[1731275932123,0.000749,79933.0,79932.0,0.13662708]
[1731275932520,0.000749,79933.0,79932.0,0.26256929]
[1731275933707,0.000749,79933.0,79932.0,0.25475321]
[1731275933917,0.000749,79933.0,79932.0,0.26256875]
[1731275934333,0.000749,79933.0,79932.0,0.27537352]
[1731275934537,0.000749,79933.0,79932.0,0.26286865]
[1731275934951,0.000749,79933.0,79932.0,0.27537352]
[1731275935159,0.000749,79933.0,79932.0,0.28037352]
[1731275935609,0.000749,79933.0,79932.0,0.28287537]
[1731275935864,0.000749,79933.0,79932.0,0.39297537]
[1731275936078,0.000749,79933.0,79932.0,0.39547352]
[1731275936708,0.000749,79933.0,79932.0,0.39547351]
[1731275939204,0.000749,79933.0,79932.0,0.38296864]
[1731275940177,0.000749,79933.0,79932.0,0.38296863]
[1731275940602,0.000749,79933.0,79932.0,0.47515309]
[1731275941011,0.000749,79933.0,79932.0,0.48296751]
[1731275941209,0.000749,79933.0,79932.0,0.48296767]
[1731275941593,0.000749,79933.0,79932.0,0.48296766]
[1731275942206,0.000749,79933.0,79932.0,0.49506766]
[1731275943294,0.000749,79933.0,79932.0,0.4950679]
[1731275943675,0.000749,79933.0,79932.0,0.4129679]
[1731275943958,0.000749,79933.0,79932.0,0.15402569]
[1731275944192,0.000749,79933.0,79932.0,0.02391968]
[1731275944435,0.000749,79933.0,79932.0,0.01610486]
[1731275945275,0.000749,79933.0,79932.0,0.14121086]
[1731275948303,0.000458,79935.0,79934.0,0.125103]
[1731275948579,0.000458,79935.0,79934.0,0.12540286]
[1731275949334,0.000458,79935.0,79934.0,0.00029986]
[1731275949541,0.000458,79935.0,79934.0,0.00400486]
[1731275949953,0.000458,79935.0,79934.0,0.00029986]
[1731275950172,0.125559,79935.0,79934.0,0.00029986]
[1731275950410,0.000458,79935.0,79934.0,0.00029986]
[1731275951696,0.000458,79935.0,79934.0,0.12540286]
[1731275951950,0.000458,79935.0,79934.0,0.00029986]
[1731275952777,0.125559,79935.0,79934.0,0.00029986]
[1731275953249,0.000458,79935.0,79934.0,0.00029986]
[1731275954651,0.125599,79935.0,79934.0,0.00029986]
[1731275954883,0.000498,79935.0,79934.0,0.00029986]
[1731275955908,0.125599,79935.0,79934.0,0.00029986]
[1731275960477,0.000498,79935.0,79934.0,0.00029986]
[1731275960742,0.000498,79935.0,79934.0,0.12540286]
[1731275961395,0.000498,79935.0,79934.0,0.12910786]
[1731275961874,0.000498,79935.0,79934.0,0.25755187]
[1731275962108,0.000498,79935.0,79934.0,0.33619459]
[1731275962336,0.000498,79935.0,79934.0,0.43369279]
[1731275962551,0.000709,79944.0,79943.0,0.3109223]
[1731275962766,0.000709,79944.0,79943.0,0.44497864]
[1731275962976,0.000709,79944.0,79943.0,0.45748148]
[1731275963187,0.000709,79944.0,79943.0,0.45748147]
[1731275964121,0.00084,79953.0,79952.0,0.14378]
[1731275964319,0.000709,79958.0,79957.0,0.166772]
[1731275964535,0.000709,79958.0,79957.0,0.30052849]
[1731275964763,0.000709,79958.0,79957.0,0.33546982]
[1731275964982,0.000709,79958.0,79957.0,0.40052849]
[1731275965206,0.000709,79958.0,79957.0,0.41303133]
[1731275966190,0.000709,79958.0,79957.0,0.40052849]
[1731275966439,0.000709,79958.0,79957.0,0.4130277]
[1731275966865,0.000749,79958.0,79957.0,0.4130277]
[1731275967470,0.000749,79958.0,79957.0,0.40052849]
[1731275967700,0.000749,79958.0,79957.0,0.40832772]
[1731275967911,0.000749,79958.0,79957.0,0.36001402]
[1731275968140,0.000749,79958.0,79957.0,0.36782624]
[1731275968551,0.000749,79958.0,79957.0,0.17462428]
[1731275968756,0.000749,79958.0,79957.0,0.0040048]
[1731275968955,0.000749,79958.0,79957.0,0.1290718]
[1731275969159,0.000749,79958.0,79957.0,0.0040048]
[1731275969799,0.125814,79958.0,79957.0,0.0040048]
[1731275970333,0.125814,79958.0,79957.0,0.0002998]
[1731275972264,0.000749,79958.0,79957.0,0.0002998]
[1731275972433,0.125814,79958.0,79957.0,0.0002998]
[1731275974217,0.44128451,79958.0,79957.0,0.0002998]
[1731275974377,0.70139659,79958.0,79957.0,0.0002998]
[1731275974577,0.125089,79943.0,79942.0,0.18755744]
[1731275974783,0.39515951,79943.0,79942.0,0.18755744]
[1731275974996,0.125104,79933.0,79932.0,0.0121]
[1731275977060,0.25304621,79933.0,79932.0,0.0121]
[1731275977286,0.75304621,79933.0,79932.0,0.0121]
[1731275977458,0.89167547,79933.0,79932.0,0.0121]
[1731275977704,0.88967547,79933.0,79932.0,0.0121]
[1731275977904,0.88838047,79933.0,79932.0,0.0121]
[1731275978133,0.8907691,79933.0,79932.0,0.0121]
[1731275978909,0.8908091,79933.0,79932.0,0.0121]
[1731275979428,0.26486689,79933.0,79932.0,0.0121]
[1731275979888,0.16486689,79933.0,79932.0,0.0121]
[1731275980418,0.2908091,79933.0,79932.0,0.0121]
[1731275980829,0.16486689,79933.0,79932.0,0.0121]
[1731275982340,0.2908091,79933.0,79932.0,0.0121]
[1731275983103,0.2908091,79933.0,79920.0,0.19126244]
[1731275983104,0.125123,79921.0,79920.0,0.15503844]
[1731275983663,0.125125,79920.0,79915.0,0.003705]
[1731275983867,0.125125,79920.0,79907.0,0.50245479]
[1731275983868,0.1441283,79918.0,79914.0,0.003705]
[1731275984287,0.1441283,79918.0,79907.0,0.00558179]
[1731275984288,0.12594221,79917.0,79907.0,0.00558179]
[1731275984487,0.1441283,79908.0,79907.0,0.00558179]
[1731275984689,0.1441283,79914.0,79907.0,0.00558179]
[1731275984962,0.54002078,79923.0,79907.0,0.00558179]
[1731275984963,0.1441283,79920.0,79907.0,0.00558179]
[1731275985170,0.125119,79924.0,79918.0,0.003705]
[1731275985406,0.125125,79921.0,79918.0,0.003705]
[1731275985835,0.12512,79924.0,79918.0,0.003705]
[1731275986043,0.125121,79923.0,79918.0,0.003705]
[1731275986472,0.125117,79925.0,79918.0,0.003705]
[1731275986679,0.1441283,79932.0,79919.0,0.003705]
[1731275986890,0.125112,79928.0,79927.0,0.003705]
[1731275987103,0.1441283,79932.0,79927.0,0.003705]
[1731275987315,0.0756,79937.0,79927.0,0.003705]
[1731275987316,0.1,79935.0,79927.0,0.003705]
[1731275987524,0.1,79935.0,79930.0,0.125108]
[1731275987731,0.1,79935.0,79927.0,0.003705]
[1731275987943,0.350204,79935.0,79927.0,0.003705]
[1731275988144,0.125112,79928.0,79927.0,0.003705]
[1731275988356,0.125111,79929.0,79927.0,0.003705]
[1731275988560,0.125112,79928.0,79927.0,0.003705]
[1731275988974,0.350204,79935.0,79923.0,0.003705]
[1731275989157,0.350204,79935.0,79927.0,0.003705]
[1731275989158,0.125112,79928.0,79927.0,0.003705]
[1731275989367,0.250212,79932.0,79927.0,0.003705]
[1731275989368,0.125109,79930.0,79927.0,0.003705]
[1731275989604,0.125109,79930.0,79914.0,0.250267]
[1731275989605,0.03969898,79933.0,79922.0,0.003705]
[1731275989818,0.250246,79922.0,79919.0,0.18755744]
[1731275990023,0.125121,79923.0,79919.0,0.18755744]
[1731275990226,0.125121,79923.0,79918.0,0.003705]
[1731275990428,0.1441283,79926.0,79915.0,0.003705]
[1731275990634,0.250243,79923.0,79916.0,0.003705]
[1731275990837,0.1441283,79926.0,79916.0,0.003705]
[1731275991064,0.125129,79917.0,79916.0,0.003705]
[1731275991293,0.12594221,79926.0,79916.0,0.003705]
[1731275991728,0.250234,79925.0,79916.0,0.003705]
[1731275991943,0.13853643,79925.0,79911.0,0.003705]
[1731275992226,0.125137,79912.0,79911.0,0.003705]
[1731275992705,0.125139,79911.0,79910.0,0.003705]
[1731275994859,0.12514,79910.0,79909.0,0.003705]
[1731275995216,0.250265,79915.0,79909.0,0.003705]
[1731275995415,0.125138,79912.0,79909.0,0.003705]
[1731275995585,0.250243,79922.0,79909.0,0.003705]
[1731275995788,0.250243,79922.0,79900.0,0.003705]
[1731275995789,0.125143,79908.0,79900.0,0.003705]
[1731275996037,0.33158521,79908.0,79897.0,0.18755744]
[1731275996697,0.33158521,79908.0,79898.0,0.003705]
[1731275996899,0.33158521,79908.0,79897.0,0.18755744]
[1731275997150,0.33358521,79908.0,79897.0,0.18755744]
[1731275997489,0.35817699,79908.0,79897.0,0.18755744]
[1731275997690,0.35617699,79908.0,79897.0,0.18755744]
[1731275998550,0.35617699,79908.0,79891.0,0.003705]
[1731275998764,0.35817699,79908.0,79898.0,0.18755744]
[1731275998977,0.4841192,79908.0,79898.0,0.18755744]
[1731275999186,0.35617699,79908.0,79898.0,0.18755744]
[1731275999389,0.35617699,79908.0,79898.0,0.19126244]
[1731275999390,0.27567699,79908.0,79898.0,0.19126244]
[1731275999591,0.25108521,79908.0,79898.0,0.19126244]
[1731276000457,0.29257556,79908.0,79898.0,0.19126244]
[1731276000945,0.31731496,79908.0,79898.0,0.19126244]
[1731276001155,0.41104565,79908.0,79898.0,0.18755744]
[1731276001372,0.41104565,79908.0,79899.0,0.18755744]
[1731276001580,0.31731496,79908.0,79899.0,0.18755744]
[1731276001784,0.31735496,79908.0,79899.0,0.18755744]
[1731276002610,0.19141275,79908.0,79904.0,0.003705]
[1731276003433,0.19141275,79908.0,79899.0,0.18755744]
[1731276003658,0.19141275,79908.0,79885.0,0.297258]
[1731276003659,0.46148326,79908.0,79889.0,0.18755744]
[1731276003862,0.56348326,79908.0,79889.0,0.19126244]
[1731276004274,0.68942547,79908.0,79889.0,0.19126244]
[1731276004480,0.83012047,79908.0,79889.0,0.18755744]
[1731276004692,0.125172,79890.0,79889.0,0.18755744]
[1731276004893,0.57604251,79890.0,79889.0,0.18755744]
[1731276005101,0.35111421,79890.0,79889.0,0.18755744]
[1731276005305,0.35111421,79890.0,79880.0,0.18755744]
[1731276005306,0.125184,79882.0,79880.0,0.18755744]
[1731276005726,0.125184,79882.0,79879.0,0.003705]
[1731276006199,0.25035,79888.0,79879.0,0.003705]
[1731276006400,0.37629221,79888.0,79879.0,0.003705]
[1731276006611,0.125187,79881.0,79879.0,0.003705]
[1731276006816,0.250353,79887.0,79879.0,0.003705]
[1731276007020,0.12594221,79888.0,79879.0,0.003705]
[1731276007021,0.37629421,79888.0,79879.0,0.003705]
[1731276007228,0.1,79889.0,79877.0,0.03991391]
[1731276007229,0.125174,79889.0,79885.0,0.003705]
[1731276007695,0.1,79891.0,79885.0,0.003705]
[1731276007696,0.125176,79888.0,79885.0,0.003705]
[1731276007904,0.125178,79886.0,79885.0,0.003705]
[1731276008545,0.125178,79886.0,79876.0,0.18755744]
[1731276008546,0.07922022,79888.0,79879.0,0.003705]
[1731276008745,0.12594221,79888.0,79879.0,0.003705]
[1731276008972,0.250356,79886.0,79879.0,0.003705]
[1731276009191,0.250353,79887.0,79879.0,0.066305]
[1731276009414,0.125181,79884.0,79879.0,0.066305]
[1731276009615,0.12594221,79888.0,79879.0,0.066305]
[1731276009840,0.125185,79882.0,79879.0,0.066305]
[1731276009967,0.125186,79881.0,79879.0,0.066305]
[1731276010185,0.125174,79889.0,79883.0,0.003705]
[1731276010380,0.125174,79889.0,79879.0,0.0626]
[1731276010381,0.125172,79890.0,79884.0,0.128885]
[1731276010715,0.1,79893.0,79884.0,0.003705]
[1731276010716,0.250334,79893.0,79884.0,0.003705]
[1731276010913,0.125178,79886.0,79884.0,0.003705]
[1731276011229,0.125172,79890.0,79884.0,0.003705]
[1731276011405,0.125179,79886.0,79884.0,0.003705]
[1731276011549,0.12594221,79893.0,79884.0,0.003705]
[1731276011750,0.125177,79887.0,79884.0,0.003705]
[1731276011987,0.12594221,79893.0,79885.0,0.00168]
[1731276012179,0.125178,79886.0,79885.0,0.00168]
[1731276013289,0.1877646,79886.0,79885.0,0.00168]
[1731276013504,0.31370681,79886.0,79885.0,0.00168]
[1731276014110,0.25112021,79886.0,79885.0,0.00168]
[1731276015396,0.35112021,79886.0,79885.0,0.00168]
[1731276016002,0.39260368,79886.0,79885.0,0.00168]
[1731276017134,0.39389868,79886.0,79885.0,0.00168]
[1731276019110,0.39589868,79886.0,79885.0,0.00168]
[1731276019310,0.61034089,79886.0,79885.0,0.00168]
[1731276020550,0.60834089,79886.0,79885.0,0.00168]
[1731276020770,0.48239868,79886.0,79885.0,0.00168]
[1731276025203,0.48239868,79886.0,79885.0,0.0018803]
[1731276025204,0.48439868,79886.0,79885.0,0.0018803]
[1731276025411,0.48239868,79886.0,79885.0,0.0018803]
[1731276028500,0.48439868,79886.0,79885.0,0.0018803]
[1731276028700,0.48239868,79886.0,79885.0,0.0018803]
[1731276030581,0.48439868,79886.0,79885.0,0.0018803]
[1731276031623,0.48239868,79886.0,79885.0,0.0018803]
[1731276032657,0.26742568,79886.0,79885.0,0.0018803]
[1731276032901,0.04087821,79893.0,79885.0,0.0018803]
[1731276033107,1.7125,79895.0,79886.0,0.128882]
[1731276033497,0.80994221,79895.0,79890.0,0.12517]
[1731276033802,0.80994221,79895.0,79890.0,0.125171]
[1731276033803,0.12594221,79895.0,79890.0,0.125171]
[1731276034004,0.00084,79907.0,79898.0,0.125159]
[1731276034005,0.125149,79905.0,79898.0,0.125159]
[1731276034289,0.00084,79907.0,79904.0,0.003705]
[1731276034492,0.00084,79907.0,79906.0,0.128852]
[1731276034928,0.00084,79907.0,79906.0,0.13667057]
[1731276035336,0.00084,79907.0,79906.0,0.128852]
[1731276035554,0.00084,79907.0,79906.0,0.13667086]
[1731276035884,0.00084,79907.0,79906.0,0.3120158]
[1731276036095,0.00084,79907.0,79906.0,0.30951307]
[1731276037147,0.00084,79907.0,79906.0,0.30169421]
[1731276037541,0.00084,79907.0,79906.0,0.42611215]
[1731276037742,4e-05,79908.0,79907.0,0.031705]
[1731276037964,0.000839,79920.0,79907.0,0.031705]
[1731276037965,0.000839,79920.0,79919.0,0.128831]
[1731276038167,0.000839,79920.0,79919.0,0.13664894]
[1731276038372,0.000839,79920.0,79919.0,0.128831]
[1731276040189,0.000839,79920.0,79919.0,0.12903131]
[1731276042257,0.000839,79920.0,79919.0,0.42297591]
[1731276042455,0.000839,79920.0,79919.0,0.42629]
[1731276042673,0.000839,79920.0,79919.0,0.42628999]
[1731276043244,0.000839,79920.0,79919.0,0.46638548]
[1731276043651,0.000879,79920.0,79919.0,0.46638548]
[1731276044215,0.000879,79920.0,79919.0,0.46638524]
[1731276044445,4e-05,79933.0,79932.0,0.156811]
[1731276044655,4e-05,79933.0,79932.0,0.55708345]
[1731276044872,4e-05,79933.0,79932.0,0.56039797]
[1731276045087,4e-05,79933.0,79932.0,0.60587731]
[1731276045531,4e-05,79933.0,79932.0,0.6058773]
[1731276045775,4e-05,79933.0,79932.0,0.59337433]
[1731276045992,4e-05,79933.0,79932.0,0.70695033]
[1731276046214,4e-05,79933.0,79932.0,0.71945373]
[1731276046666,4e-05,79933.0,79932.0,0.72145373]
[1731276046893,4e-05,79933.0,79932.0,0.71945373]
[1731276047341,0.000749,79958.0,79950.0,0.254283]
[1731276047580,0.000749,79958.0,79950.0,0.38042551]
[1731276047807,0.000749,79958.0,79950.0,0.5245538]
[1731276047808,0.0057952,79951.0,79950.0,0.5245538]
[1731276048011,0.0057952,79951.0,79950.0,0.59910617]
[1731276048233,0.000749,79958.0,79957.0,0.156772]
[1731276048464,0.000749,79958.0,79957.0,0.43954371]
[1731276048673,0.000749,79958.0,79957.0,0.47359517]
[1731276048878,0.000749,79958.0,79957.0,0.48140762]
[1731276049091,0.000749,79958.0,79957.0,0.48140761]
[1731276049353,0.000749,79958.0,79957.0,0.29072694]
[1731276049550,0.000749,79958.0,79957.0,0.29291449]
[1731276050353,0.18755744,79978.0,79957.0,0.29291449]
[1731276050354,0.18755744,79975.0,79972.0,0.003705]
[1731276050602,0.006295,79992.0,79958.0,0.005]
[1731276050603,0.03970734,79989.0,79974.0,0.003705]
[1731276050854,0.03970734,79989.0,79975.0,0.19126244]
[1731276050855,0.000708,79987.0,79975.0,0.19126244]
[1731276051068,0.000708,79987.0,79985.0,0.003705]
[1731276052170,0.000708,79987.0,79982.0,0.003705]
[1731276052384,0.250749,79987.0,79981.0,0.003705]
[1731276052555,0.250046,79985.0,79978.0,0.003705]
[1731276052824,0.125027,79983.0,79980.0,0.18755744]
[1731276053047,0.12503,79981.0,79978.0,0.003705]
[1731276053284,0.12503,79981.0,79980.0,0.0626]
[1731276053481,0.125027,79983.0,79980.0,0.0626]
[1731276053754,0.000708,79987.0,79980.0,0.0626]
[1731276054177,0.125025,79984.0,79980.0,0.066305]
[1731276054667,0.000749,79986.0,79980.0,0.066305]
[1731276054668,0.125771,79986.0,79980.0,0.066305]
[1731276054943,0.125026,79983.0,79980.0,0.066305]
[1731276055142,0.000749,79986.0,79980.0,0.066305]
[1731276055475,0.125029,79981.0,79980.0,0.066305]
[1731276055699,0.125029,79981.0,79980.0,0.0626]
[1731276055700,0.25097121,79981.0,79980.0,0.0626]
[1731276055899,0.000749,79986.0,79980.0,0.0626]
[1731276056119,0.25005,79984.0,79980.0,0.0626]
[1731276056334,0.000749,79986.0,79980.0,0.0626]
[1731276056534,0.125024,79985.0,79982.0,0.003705]
[1731276057131,0.125025,79984.0,79982.0,0.003705]
[1731276057553,0.000749,79986.0,79982.0,0.003705]
[1731276057554,0.125026,79983.0,79982.0,0.003705]
[1731276057878,0.125026,79983.0,79980.0,0.0626]
[1731276057879,0.250055,79983.0,79980.0,0.0626]
[1731276058078,0.125029,79981.0,79980.0,0.0626]
[1731276059531,0.125029,79981.0,79980.0,0.07041272]
[1731276060372,0.125029,79981.0,79980.0,0.08291325]
[1731276060571,0.125029,79981.0,79980.0,0.070413]
[1731276060572,0.57259951,79981.0,79980.0,0.070413]
[1731276060832,0.127048,79969.0,79968.0,0.00020027]
[1731276061023,0.250093,79971.0,79953.0,0.0067304]
[1731276061024,0.12506,79961.0,79953.0,0.0067304]
[1731276061224,0.125071,79954.0,79953.0,0.0067304]
[1731276062440,0.250134,79957.0,79946.0,0.003705]
[1731276062653,0.005,79962.0,79953.0,0.003705]
[1731276062848,0.1,79966.0,79962.0,0.003705]
[1731276063029,0.250079,79975.0,79965.0,0.003705]
[1731276063240,0.18755744,79977.0,79967.0,0.003705]
[1731276063443,0.250097,79969.0,79962.0,0.003705]
[1731276063644,0.2441283,79976.0,79962.0,0.003705]
[1731276063883,0.2441283,79976.0,79968.0,0.003705]
[1731276064096,0.12505,79968.0,79967.0,0.003705]
[1731276064299,0.1,79976.0,79967.0,0.003705]
[1731276064599,0.125039,79975.0,79967.0,0.03594469]
[1731276064770,0.125041,79974.0,79968.0,0.02813063]
[1731276065117,0.002,79976.0,79969.0,0.02813049]
[1731276065118,0.125044,79972.0,79969.0,0.02813049]
[1731276065338,0.250081,79974.0,79961.0,0.003705]
[1731276065544,0.250081,79974.0,79962.0,0.03594513]
[1731276065744,0.250081,79974.0,79963.0,0.03594513]
[1731276065745,0.12505,79968.0,79963.0,0.03594513]
[1731276066196,0.250081,79974.0,79961.0,0.003705]
[1731276066197,0.125048,79969.0,79964.0,0.03594513]
[1731276066424,0.125048,79969.0,79965.0,0.03594513]
[1731276066646,0.125051,79967.0,79966.0,0.02813097]
[1731276066853,0.125051,79967.0,79966.0,0.03594513]
[1731276067121,0.81351661,79967.0,79966.0,0.03594513]
[1731276067334,0.94238821,79967.0,79966.0,0.02031681]
[1731276068089,0.98286029,79967.0,79966.0,0.00781416]
[1731276068943,0.98286029,79967.0,79966.0,1.00781416]
[1731276069500,0.98286029,79967.0,79966.0,1.0]
[1731276070043,0.98286029,79967.0,79966.0,1.00781611]
[1731276070446,0.105,79967.0,79966.0,1.00781611]
[1731276070729,0.5,79978.0,79966.0,1.00781611]
[1731276070883,1.96348121,79975.0,79967.0,0.02032099]
[1731276071092,0.4975,79975.0,79968.0,0.22717193]
[1731276071313,0.125031,79980.0,79978.0,0.125033]
[1731276071314,0.000839,79980.0,79978.0,0.125033]
[1731276071459,0.000839,79980.0,79979.0,0.15218161]
[1731276071663,0.00084,79985.0,79979.0,0.15218161]
[1731276071664,0.00084,79985.0,79979.0,0.02714961]
[1731276071864,0.00084,79985.0,79980.0,0.02344461]
[1731276072195,0.00084,79985.0,79979.0,0.128737]
[1731276072196,0.00084,79985.0,79981.0,0.02344461]
[1731276072402,0.00084,79985.0,79982.0,0.02344461]
[1731276072667,0.00084,79985.0,79983.0,0.02344461]
[1731276072879,0.00084,79985.0,79984.0,0.21099381]
[1731276073101,0.00084,79985.0,79984.0,0.00781212]
[1731276073312,0.00084,79985.0,79984.0,0.01459642]
[1731276073662,0.00084,79985.0,79984.0,0.00781212]
[1731276074289,0.00084,79985.0,79984.0,0.01460153]
[1731276074749,0.00084,79985.0,79984.0,0.12873]
[1731276074984,0.00084,79985.0,79984.0,0.01830789]
[1731276075184,0.00084,79985.0,79984.0,0.02714071]
[1731276075408,0.00084,79985.0,79984.0,0.15216571]
[1731276077245,0.00084,79985.0,79984.0,0.13654187]
[1731276077852,0.00084,79985.0,79984.0,0.01151674]
[1731276078189,0.00084,79985.0,79984.0,0.02714037]
[1731276078698,0.125863,79985.0,79984.0,0.02714037]
[1731276078911,0.125863,79985.0,79984.0,0.02343537]
[1731276079094,0.125863,79985.0,79984.0,0.00781174]
[1731276080286,0.00084,79985.0,79984.0,0.00781174]
[1731276080491,0.125863,79985.0,79984.0,0.00781174]
[1731276080696,0.125863,79985.0,79984.0,0.00801197]
[1731276081764,0.125863,79985.0,79984.0,0.02051157]
[1731276081997,0.125863,79985.0,79984.0,0.00801197]
[1731276083445,0.00084,79985.0,79984.0,0.00801197]
[1731276083839,0.00084,79985.0,79984.0,0.02051132]
[1731276084450,0.00084,79985.0,79980.0,0.9627668]
[1731276084655,0.00084,79985.0,79980.0,1.0877968]
[1731276084855,0.125864,79985.0,79980.0,1.0877968]
[1731276085057,0.125864,79985.0,79980.0,0.9627668]
[1731276085357,0.00084,79985.0,79984.0,0.125025]
[1731276085554,0.000589,79986.0,79984.0,0.125025]
[1731276086428,0.000589,79986.0,79982.0,0.250056]
[1731276086643,0.000589,79986.0,79980.0,0.9627668]
[1731276086867,0.000589,79986.0,79983.0,0.125025]
[1731276087525,0.125023,79985.0,79980.0,1.0877968]
[1731276087725,0.125025,79984.0,79980.0,0.9627668]
[1731276088140,0.125029,79981.0,79980.0,0.9627668]
[1731276089161,0.16579852,79981.0,79980.0,0.9627668]
[1731276089362,0.39174073,79981.0,79980.0,0.9627668]
[1731276089586,0.39674073,79981.0,79980.0,0.9627668]
[1731276089763,0.39174073,79981.0,79980.0,0.9627668]
[1731276090007,0.43397684,79981.0,79980.0,0.9627668]
[1731276090550,0.40874073,79981.0,79980.0,0.9627668]
[1731276090751,0.53268294,79981.0,79980.0,0.9627668]
[1731276090980,0.67047989,79981.0,79980.0,0.9627668]
[1731276091201,0.67247989,79981.0,79980.0,0.9627668]
[1731276091418,0.54653768,79981.0,79980.0,0.9627668]
[1731276091630,0.57151663,79981.0,79980.0,0.9627668]
[1731276091851,0.76661663,79981.0,79980.0,0.9627668]
[1731276092740,0.76161663,79981.0,79980.0,0.9627668]
[1731276092952,0.7616316,79981.0,79980.0,0.9627668]
[1731276093160,0.88757381,79981.0,79980.0,0.9627668]
[1731276093360,0.62205265,79981.0,79980.0,0.9627668]
[1731276093590,0.61205265,79981.0,79980.0,0.9627668]
[1731276093811,0.47424073,79981.0,79980.0,0.9627668]
[1731276094022,0.48424073,79981.0,79980.0,0.9627668]
[1731276094429,0.62201752,79981.0,79980.0,0.9627668]
[1731276094890,0.74795973,79981.0,79980.0,0.9644448]
[1731276095127,0.74995973,79981.0,79980.0,0.9644448]
[1731276095287,0.75079873,79981.0,79980.0,0.9637448]
[1731276095651,0.77626441,79981.0,79980.0,0.9637448]
[1731276095982,0.62285652,79981.0,79980.0,0.9637448]
[1731276096191,0.62485652,79981.0,79980.0,0.9637448]
[1731276096428,0.6975123,79981.0,79980.0,0.9637448]
[1731276096636,0.62285652,79981.0,79980.0,0.9637448]
[1731276096807,0.62485652,79981.0,79980.0,0.9637448]
[1731276097181,0.61006158,79981.0,79980.0,0.40582106]
[1731276097439,0.83770056,79981.0,79980.0,0.40582106]
[1731276097647,0.83770056,79981.0,79965.0,0.18755744]
[1731276097648,0.717953,79966.0,79965.0,0.18755744]
[1731276097849,0.742065,79958.0,79957.0,0.18755744]
[1731276098092,1.08413342,79958.0,79957.0,0.18755744]
[1731276098293,0.640078,79950.0,79949.0,0.18755744]
[1731276098495,0.74209,79942.0,79941.0,0.18755744]
[1731276098642,1.08415842,79942.0,79941.0,0.18755744]
[1731276098929,1.01030256,79942.0,79941.0,0.18755744]
[1731276099041,0.002,79934.0,79924.0,0.18755744]
[1731276099246,0.475346,79926.0,79925.0,0.18755744]
[1731276099444,0.475346,79926.0,79913.0,0.1894343]
[1731276099445,0.125134,79914.0,79913.0,0.1894343]
[1731276100207,0.125134,79914.0,79913.0,0.00187686]
[1731276101593,0.25107621,79914.0,79913.0,0.00187686]
[1731276102427,0.005,79912.0,79901.0,0.18755744]
[1731276102635,0.125153,79902.0,79901.0,0.18755744]
[1731276103054,0.125153,79902.0,79900.0,0.001416]
[1731276103055,0.125154,79901.0,79900.0,0.001416]
[1731276103593,0.37622021,79911.0,79900.0,0.001416]
[1731276103594,0.12594221,79911.0,79900.0,0.001416]
[1731276103909,0.125154,79901.0,79900.0,0.001416]
[1731276104747,0.250287,79908.0,79900.0,0.001416]
[1731276105008,0.125154,79902.0,79900.0,0.001416]
[1731276105154,0.250272,79913.0,79901.0,0.18755744]
[1731276105537,0.250262,79917.0,79900.0,0.001416]
[1731276105712,0.005,79920.0,79900.0,0.001416]
[1731276105713,0.26308364,79916.0,79900.0,0.001416]
[1731276105934,0.125134,79914.0,79904.0,0.125149]
[1731276106147,0.125139,79911.0,79905.0,0.125148]
[1731276106381,0.250273,79913.0,79903.0,0.18755744]
[1731276106382,0.1,79915.0,79904.0,0.2503]
[1731276106594,0.125136,79914.0,79906.0,0.125146]
[1731276106760,0.250269,79914.0,79904.0,0.125149]
[1731276106977,0.1,79915.0,79903.0,0.125151]
[1731276107189,0.250275,79912.0,79903.0,0.125151]
[1731276107349,0.125142,79909.0,79903.0,0.125151]
[1731276107572,0.125154,79901.0,79900.0,0.001416]
[1731276108681,0.750275,79912.0,79900.0,0.001416]
[1731276108682,0.250275,79912.0,79900.0,0.001416]
[1731276108928,0.28755744,79915.0,79903.0,0.125151]
[1731276109132,0.28755744,79915.0,79900.0,0.001416]
[1731276109133,0.250278,79911.0,79900.0,0.001416]
[1731276109344,0.125154,79902.0,79901.0,0.18755744]
[1731276109548,0.12594221,79911.0,79901.0,0.18755744]
[1731276109697,0.12514,79910.0,79900.0,0.001416]
[1731276109900,0.125145,79908.0,79902.0,0.125153]
[1731276110314,0.250281,79910.0,79900.0,0.001416]
[1731276110519,0.125146,79907.0,79900.0,0.126571]
[1731276110715,0.125146,79907.0,79901.0,0.125153]
[1731276111575,0.125141,79910.0,79900.0,0.18897344]
[1731276111712,0.125145,79907.0,79900.0,0.126571]
[1731276111911,0.12514,79910.0,79900.0,0.001416]
[1731276112218,0.125143,79909.0,79902.0,0.125152]
[1731276112473,0.125143,79909.0,79903.0,0.12515]
[1731276112879,0.1,79914.0,79900.0,0.001416]
[1731276113082,0.125142,79909.0,79902.0,0.125152]
[1731276113289,0.250272,79913.0,79905.0,0.125147]
[1731276113523,1.7125,79917.0,79909.0,0.18755744]